bitfinex-derivatives/quotes_ETHF0:USTF0_20230701
["timestamp","ask_amount","ask_price","bid_price","bid_amount"]
[1688183440832,20.45559595,1921.0,1920.8,0.50760519]
[1688183441738,18.90362587,1921.0,1920.9,0.104]
[1688183441937,8.30505182,1921.0,1920.9,0.41649]
[1688183442134,3.61505182,1921.0,1920.9,0.41649]
[1688183442534,3.92752182,1921.0,1920.9,0.41649]
[1688183442735,14.81281222,1921.0,1920.9,0.41649]
[1688183443029,14.81281222,1921.0,1920.9,0.31249]
[1688183444836,14.81281222,1921.0,1920.9,0.50758519]
[1688183444837,14.50034222,1921.0,1920.9,0.50758519]
[1688183445234,14.52609587,1921.0,1920.9,0.50758519]
[1688183446639,14.81281222,1921.0,1920.9,0.50758519]
[1688183446935,14.52609587,1921.0,1920.9,0.50758519]
[1688183447537,14.81281222,1921.0,1920.9,0.50758519]
[1688183447938,14.11884405,1921.0,1920.9,0.50758519]
[1688183448939,14.4055604,1921.0,1920.9,0.50758519]
[1688183450138,14.4055604,1921.0,1920.9,0.31249]
[1688183452045,14.4055604,1921.0,1920.9,0.50758519]
[1688183453643,14.4055604,1921.0,1920.9,0.31249]
[1688183463843,21.9087414,1921.0,1920.9,0.31249]
[1688183464651,14.4055604,1921.0,1920.9,0.31249]
[1688183465358,19.0955604,1921.0,1920.9,0.31249]
[1688183467556,26.5987414,1921.0,1920.9,0.31249]
[1688183471264,26.7017414,1921.0,1920.8,0.73445696]
[1688183471456,23.27455452,1920.9,1920.8,0.73445696]
[1688183471663,23.58704452,1920.9,1920.8,0.73445696]
[1688183472359,23.10307079,1920.9,1920.8,0.92955215]
[1688183472762,18.10058079,1920.9,1920.8,0.92955215]
[1688183475060,10.59857405,1920.9,1920.8,0.92955215]
[1688183475966,18.10058079,1920.9,1920.8,0.92955215]
[1688183477066,18.10058079,1920.9,1920.8,0.73445696]
[1688183477565,18.41307079,1920.9,1920.8,0.73445696]
[1688183479667,10.91106405,1920.9,1920.8,0.73445696]
[1688183482069,15.60106405,1920.9,1920.8,0.73445696]
[1688183483368,16.01639847,1920.9,1920.8,0.73445696]
[1688183485167,16.01639847,1920.9,1920.8,0.92955215]
[1688183486171,15.70390847,1920.9,1920.8,0.92955215]
[1688183486571,15.70390847,1920.9,1920.8,0.73445696]
[1688183486773,16.01638847,1920.9,1920.8,0.73445696]
[1688183487166,23.51839521,1920.9,1920.8,0.73445696]
[1688183489871,23.51839521,1920.9,1920.8,0.3125]
[1688183490077,0.28671635,1920.8,1920.7,0.78128]
[1688183490279,19.57957413,1920.8,1920.7,0.78128]
[1688183490869,27.08158087,1920.8,1920.7,0.78128]
[1688183491567,27.08158087,1920.8,1920.7,1.19403784]
[1688183494582,19.57957413,1920.8,1920.7,1.19403784]
[1688183496678,19.57957413,1920.8,1920.7,0.78128]
[1688183508398,19.29285778,1920.8,1920.7,0.97637519]
[1688183508699,19.57957413,1920.8,1920.7,0.97637519]
[1688183509206,19.57957413,1920.8,1920.7,0.78128]
[1688183509500,26.76907087,1920.8,1920.7,0.78128]
[1688183509703,27.08156087,1920.8,1920.7,0.78128]
[1688183516906,19.57955413,1920.8,1920.7,0.78128]
[1688183521416,27.08156087,1920.8,1920.5,0.41548235]
[1688183521609,7.8978,1920.6,1920.5,0.72801235]
[1688183521813,8.21032,1920.6,1920.5,0.31253]
[1688183522113,19.57958413,1920.6,1920.5,0.31253]
[1688183525318,19.26706413,1920.6,1920.5,0.31253]
[1688183526420,19.26706413,1920.6,1920.5,0.45255943]
[1688183526710,19.26706413,1920.6,1920.5,0.64765462]
[1688183526913,19.26706413,1920.6,1920.5,0.45255943]
[1688183527414,8.66849008,1920.6,1920.5,0.45255943]
[1688183530013,19.26706413,1920.6,1920.5,0.45255943]
[1688183530407,19.26706413,1920.6,1920.5,5.44165462]
[1688183530408,10.59857405,1920.6,1920.5,5.44165462]
[1688183530613,18.10058079,1920.7,1920.5,5.30162519]
[1688183530811,10.59857405,1920.7,1920.6,0.56748412]
[1688183531118,4.69,1920.8,1920.6,0.88000412]
[1688183531119,18.49637405,1920.8,1920.6,0.88000412]
[1688183531313,18.49637405,1920.8,1920.6,1.07509931]
[1688183531720,18.49637405,1920.8,1920.6,1.17909931]
[1688183531917,10.59857405,1920.7,1920.6,1.17909931]
[1688183532218,7.8978,1920.8,1920.6,5.82509931]
[1688183532219,3.2078,1920.8,1920.6,5.82509931]
[1688183534016,3.49451635,1920.8,1920.6,5.82509931]
[1688183534217,3.80701635,1920.8,1920.6,5.82509931]
[1688183537413,3.80701635,1920.8,1920.6,5.06252]
[1688183538120,3.2078,1920.8,1920.7,0.19509519]
[1688183538324,10.59857405,1920.8,1920.7,0.50760519]
[1688183538516,5.10533442,1920.9,1920.7,1.07508931]
[1688183539418,5.10533442,1920.9,1920.7,6.22728931]
[1688183542222,0.41533442,1920.9,1920.8,4.69]
[1688183542533,0.28671635,1920.9,1920.8,5.0025]
[1688183543030,19.22042947,1921.0,1920.8,5.0025]
[1688183543326,18.90795947,1921.0,1920.9,0.19509519]
[1688183543628,19.19467582,1921.0,1920.9,0.31249]
[1688183543823,19.50714582,1921.0,1920.9,0.31249]
[1688183565246,19.4981101,1921.0,1920.9,0.31249]
[1688183566044,19.4981101,1921.0,1920.8,0.3125]
[1688183566248,27.39201684,1921.0,1920.8,0.3125]
[1688183566548,0.3125,1920.8,1920.6,0.31253]
[1688183566745,8.21032,1920.7,1920.6,0.31253]
[1688183566945,8.98101008,1920.7,1920.6,0.31253]
[1688183567648,19.57958413,1920.7,1920.6,0.31253]
[1688183576647,19.57958413,1920.7,1920.3,15.24695]
[1688183576847,7.8978,1920.4,1920.3,0.31257]
[1688183577043,8.21037,1920.4,1920.3,0.31257]
[1688183577242,8.49708635,1920.4,1920.3,0.31257]
[1688183578149,19.0956604,1920.4,1920.3,0.7302047]
[1688183581351,10.59857405,1920.4,1920.3,5.61529989]
[1688183581551,3.2078,1920.6,1920.3,5.61529989]
[1688183581751,3.2078,1920.6,1920.5,4.69]
[1688183581961,3.2078,1920.6,1920.5,5.00255]
[1688183582153,3.2078,1920.6,1920.5,5.19764519]
[1688183585866,3.49451635,1920.6,1920.5,5.19764519]
[1688183586561,3.49451635,1920.6,1920.5,5.00255]
[1688183587773,3.80704635,1920.6,1920.5,5.00255]
[1688183588471,3.80704635,1920.6,1920.5,5.19764519]
[1688183589469,3.2078,1920.6,1920.5,5.19764519]
[1688183593567,3.49451635,1920.6,1920.5,5.19764519]
[1688183594069,3.49451635,1920.6,1920.5,5.00255]
[1688183594272,3.49451635,1920.6,1920.5,5.19764519]
[1688183595179,3.49451635,1920.6,1920.5,5.61762764]
[1688183595567,3.2078,1920.6,1920.5,5.61762764]
[1688183602081,3.2078,1920.6,1920.5,0.92762764]
[1688183602787,3.49451635,1920.6,1920.5,0.92762764]
[1688183602973,3.2078,1920.6,1920.5,0.92762764]
[1688183603981,3.49451635,1920.6,1920.5,0.92762764]
[1688183607476,3.49451635,1920.6,1920.5,0.73253245]
[1688183607781,8.49705635,1920.6,1920.5,0.31255]
[1688183609778,8.18451635,1920.6,1920.5,0.31255]
[1688183612592,8.49705635,1920.6,1920.5,0.31255]
[1688183640813,15.99906309,1920.6,1920.5,0.31255]
[1688183641108,26.59763714,1920.6,1920.5,0.31255]
[1688183642615,19.0956304,1920.6,1920.5,0.31255]
[1688183647323,19.0956304,1920.6,1920.5,0.46308464]
[1688183656331,19.0956304,1920.6,1920.5,0.15053464]
[1688183656727,19.0956304,1920.6,1920.5,0.46308464]
[1688183659824,8.49705635,1920.6,1920.5,0.46308464]
[1688183660635,19.0956304,1920.6,1920.5,0.46308464]
[1688183663634,8.49705635,1920.6,1920.5,0.46308464]
[1688183666334,8.49705635,1920.6,1920.5,0.65817983]
[1688183667336,19.0956304,1920.6,1920.5,0.65817983]
[1688183668233,19.0956304,1920.6,1920.5,0.46308464]
[1688183669441,19.0956304,1920.6,1920.5,0.65817983]
[1688183669935,19.0956304,1920.6,1920.5,0.46308464]
[1688183672942,18.80891405,1920.6,1920.5,0.65817983]
[1688183673237,18.49637405,1920.6,1920.5,0.65817983]
[1688183674829,18.7830904,1920.6,1920.5,0.65817983]
[1688183675145,8.18451635,1920.6,1920.5,0.65817983]
[1688183675642,7.8978,1920.6,1920.5,0.65817983]
[1688183680750,4.69,1920.6,1920.5,0.65817983]
[1688183681243,15.28857405,1920.6,1920.5,0.65817983]
[1688183681447,15.5752904,1920.6,1920.5,0.65817983]
[1688183681644,4.97671635,1920.6,1920.5,0.65817983]
[1688183681850,8.18451635,1920.6,1920.5,0.65817983]
[1688183682349,8.49704635,1920.6,1920.5,0.65817983]
[1688183682848,8.49704635,1920.6,1920.5,0.46308464]
[1688183683553,8.21033,1920.6,1920.5,0.65817983]
[1688183685454,5.00253,1920.6,1920.5,0.65817983]
[1688183685655,8.21033,1920.6,1920.5,0.65817983]
[1688183685855,8.49704635,1920.6,1920.5,0.65817983]
[1688183687055,8.21033,1920.6,1920.5,0.65817983]
[1688183687555,8.49704635,1920.6,1920.5,0.65817983]
[1688183687754,8.49704635,1920.6,1920.5,0.46308464]
[1688183690456,8.49704635,1920.6,1920.5,0.65817983]
[1688183691849,8.21033,1920.6,1920.5,0.65817983]
[1688183692752,8.49704635,1920.6,1920.5,0.46308464]
[1688183694948,8.21033,1920.6,1920.5,0.65817983]
[1688183695959,5.28924635,1920.6,1920.5,0.65817983]
[1688183696161,8.21033,1920.6,1920.5,0.65817983]
[1688183700166,7.8978,1920.6,1920.5,0.65817983]
[1688183700359,12.27657324,1920.7,1920.5,5.34817983]
[1688183700360,15.70128951,1920.7,1920.5,5.34817983]
[1688183700563,15.70128951,1920.7,1920.5,5.19764519]
[1688183700766,15.70128951,1920.7,1920.5,10.11854519]
[1688183701861,4.69,1920.7,1920.6,0.88001412]
[1688183702071,18.80887405,1920.8,1920.6,0.88001412]
[1688183702269,18.80887405,1920.8,1920.7,0.19509519]
[1688183702469,18.80887405,1920.8,1920.7,0.50760519]
[1688183702674,19.0955904,1920.8,1920.7,0.50760519]
[1688183703360,18.80887405,1920.8,1920.7,0.50760519]
[1688183704374,19.23373792,1920.8,1920.7,0.50760519]
[1688183705676,18.92123792,1920.8,1920.7,0.50760519]
[1688183706576,19.20795427,1920.8,1920.7,0.31251]
[1688183706775,19.20795427,1920.8,1920.7,0.50760519]
[1688183707581,18.92123792,1920.8,1920.7,0.50760519]
[1688183707988,19.20795427,1920.8,1920.7,0.50760519]
[1688183708487,18.92123792,1920.8,1920.7,0.50760519]
[1688183711387,19.23372792,1920.8,1920.7,0.50760519]
[1688183711587,19.52044427,1920.8,1920.7,0.31251]
[1688183712180,14.83044427,1920.8,1920.7,0.31251]
[1688183713592,14.83044427,1920.8,1920.7,0.50760519]
[1688183713986,14.54372792,1920.8,1920.7,0.50760519]
[1688183714686,14.83044427,1920.8,1920.7,0.50760519]
[1688183715394,14.54372792,1920.8,1920.7,0.50760519]
[1688183715798,14.83044427,1920.8,1920.7,0.50760519]
[1688183716792,14.83044427,1920.8,1920.7,0.92225914]
[1688183717097,14.83044427,1920.8,1920.7,0.72716395]
[1688183717396,19.52044427,1920.8,1920.7,0.72716395]
[1688183728206,19.52044427,1920.8,1920.7,0.31251]
[1688183731807,19.52044427,1920.8,1920.7,0.31561767]
[1688183737716,19.52044427,1920.8,1920.7,0.51071286]
[1688183738009,18.92123792,1920.8,1920.7,0.51071286]
[1688183738512,8.32266387,1920.8,1920.7,0.51071286]
[1688183738815,8.60938022,1920.8,1920.7,0.51071286]
[1688183739215,8.32266387,1920.8,1920.7,0.51071286]
[1688183740419,8.60938022,1920.8,1920.7,0.51071286]
[1688183740806,8.92187022,1920.8,1920.7,0.51071286]
[1688183741218,8.63515387,1920.8,1920.7,0.51071286]
[1688183742007,8.92187022,1920.8,1920.7,0.31561767]
[1688183742518,19.52044427,1920.8,1920.7,0.31561767]
[1688183742821,19.23372792,1920.8,1920.7,0.51071286]
[1688183745622,19.52044427,1920.8,1920.7,0.51071286]
[1688183746922,19.23372792,1920.8,1920.7,0.51071286]
[1688183747227,19.52044427,1920.8,1920.7,0.51071286]
[1688183748725,19.52044427,1920.8,1920.7,0.31561767]
[1688183749321,18.92123792,1920.8,1920.7,0.61471286]
[1688183749715,18.92123792,1920.8,1920.7,0.61160519]
[1688183750211,19.20795427,1920.8,1920.7,0.61160519]
[1688183750511,19.52044427,1920.8,1920.7,0.61160519]
[1688183750917,8.92187022,1920.8,1920.7,0.61160519]
[1688183753026,8.92187022,1920.8,1920.7,0.41651]
[1688183754026,8.92187022,1920.8,1920.7,0.31251]
[1688183754224,8.92187022,1920.8,1920.7,0.50760519]
[1688183754722,8.92187022,1920.8,1920.7,0.31561767]
[1688183757429,19.52044427,1920.8,1920.7,0.31561767]
[1688183761320,19.23372792,1920.8,1920.7,0.51071286]
[1688183761718,19.52044427,1920.8,1920.7,0.51071286]
[1688183761924,19.52044427,1920.8,1920.7,0.31561767]
[1688183764928,16.31262427,1920.8,1920.7,0.31561767]
[1688183765329,19.52042427,1920.8,1920.7,0.31561767]
[1688183765723,14.83042427,1920.8,1920.7,0.31561767]
[1688183767033,19.52042427,1920.8,1920.7,0.31561767]
[1688183770633,19.52042427,1920.8,1920.7,0.31251]
[1688183783736,19.20795427,1920.8,1920.7,0.50760519]
[1688183783936,18.92123792,1920.8,1920.7,0.50760519]
[1688183784136,19.20795427,1920.8,1920.7,0.31251]
[1688183784637,8.60938022,1920.8,1920.7,0.31251]
[1688183785549,8.92186022,1920.8,1920.7,0.31251]
[1688183787350,8.92186022,1920.8,1920.7,0.50760519]
[1688183787751,8.92186022,1920.8,1920.7,0.31251]
[1688183790757,8.60938022,1920.8,1920.7,0.31251]
[1688183792057,8.92187022,1920.8,1920.7,0.31251]
[1688183793958,5.71407022,1920.8,1920.7,0.31251]
[1688183794154,5.71407022,1920.8,1920.7,0.50760519]
[1688183794356,5.42735387,1920.8,1920.7,0.50760519]
[1688183794747,13.80637405,1920.9,1920.7,5.25760519]
[1688183794953,10.59857405,1920.9,1920.8,0.56748412]
[1688183795254,15.28857405,1921.0,1920.9,0.41647]
[1688183795648,15.99497259,1921.0,1920.9,0.41647]
[1688183795847,16.30743259,1921.0,1920.9,0.41647]
[1688183796549,16.30743259,1921.0,1920.9,0.31247]
[1688183800166,16.02071624,1921.0,1920.9,0.31247]
[1688183800558,16.02071624,1921.0,1920.9,0.50756519]
[1688183801769,16.30743259,1921.0,1920.9,0.50756519]
[1688183802668,5.70885854,1921.0,1920.9,0.50756519]
[1688183802862,5.42214219,1921.0,1920.9,0.50756519]
[1688183803761,5.70885854,1921.0,1920.9,0.50756519]
[1688183805068,5.70885854,1921.0,1920.9,0.31247]
[1688183805261,16.30743259,1921.0,1920.9,0.31247]
[1688183805562,16.30743259,1921.0,1920.9,0.50756519]
[1688183806764,15.99497259,1921.0,1920.9,0.50756519]
[1688183807067,15.28857405,1921.0,1920.9,0.50756519]
[1688183807270,4.69,1921.0,1920.9,0.50756519]
[1688183807762,13.80637405,1921.1,1920.9,5.19756519]
[1688183808161,13.80637405,1921.1,1920.9,10.21316519]
[1688183808361,3.2078,1921.1,1920.9,10.21316519]
[1688183808566,3.62966563,1921.1,1920.9,10.21316519]
[1688183812976,3.62966563,1921.1,1921.0,0.56748412]
[1688183813174,14.22823968,1921.1,1921.0,0.87994412]
[1688183813878,13.80637405,1921.1,1921.0,5.54194412]
[1688183814078,3.2078,1921.1,1921.0,5.54194412]
[1688183814280,3.27621233,1921.1,1921.0,5.54194412]
[1688183814577,3.27621233,1921.1,1921.0,5.64594412]
[1688183814768,0.06841233,1921.1,1921.0,5.64594412]
[1688183815170,0.00780823,1921.2,1921.0,5.64594412]
[1688183815370,0.13320523,1921.1,1921.0,5.64594412]
[1688183815578,0.00780823,1921.2,1921.0,10.84764412]
[1688183815979,0.12386958,1921.1,1921.0,10.84764412]
[1688183816368,0.00780823,1921.2,1921.0,10.84764412]
[1688183816574,0.12388501,1921.1,1921.0,10.84764412]
[1688183816774,0.00780823,1921.2,1921.0,10.93873931]
[1688183817278,0.12389617,1921.1,1921.0,10.93873931]
[1688183817681,0.00780823,1921.2,1921.0,10.93873931]
[1688183817980,0.12391174,1921.1,1921.0,10.93873931]
[1688183818375,0.00780823,1921.2,1921.0,10.93873931]
[1688183818573,0.12392817,1921.1,1921.0,10.93873931]
[1688183818773,10.60638228,1921.2,1921.0,10.93873931]
[1688183819080,0.12393806,1921.1,1921.0,10.93873931]
[1688183819383,10.60638228,1921.2,1921.0,10.93873931]
[1688183819581,0.12394871,1921.1,1921.0,10.93873931]
[1688183819780,10.60638228,1921.2,1921.0,10.93873931]
[1688183820089,0.12395931,1921.1,1921.0,10.93873931]
[1688183820280,10.60638228,1921.2,1921.0,10.93873931]
[1688183820680,0.12397035,1921.1,1921.0,10.93873931]
[1688183820878,10.60638228,1921.2,1921.0,10.93873931]
[1688183821078,0.12398061,1921.1,1921.0,10.93873931]
[1688183821379,10.60638228,1921.2,1921.0,10.93873931]
[1688183821579,0.12399131,1921.1,1921.0,10.93873931]
[1688183821886,10.60638228,1921.2,1921.0,10.93873931]
[1688183822083,0.12400193,1921.1,1921.0,6.27673931]
[1688183822277,0.00780823,1921.2,1921.0,10.93873931]
[1688183822583,0.00780823,1921.2,1921.1,4.95844]
[1688183828195,0.29452458,1921.2,1921.1,4.95844]
[1688183828492,0.60694458,1921.2,1921.1,4.95844]
[1688183829693,10.91880228,1921.2,1921.1,4.95844]
[1688183829888,11.20551863,1921.2,1921.1,4.95844]
[1688183830590,10.89309863,1921.2,1921.1,4.95844]
[1688183830995,10.60638228,1921.2,1921.1,4.95844]
[1688183831196,0.00780823,1921.2,1921.1,4.95844]
[1688183834692,0.14579903,1921.2,1921.1,4.95844]
[1688183852520,0.18232555,1921.2,1921.1,4.95844]
[1688183874340,0.18232555,1921.2,1921.1,8.16624]
[1688183877445,0.18232555,1921.2,1921.1,4.95844]
[1688183878450,0.18232555,1921.2,1921.1,8.16624]
[1688183882847,0.18232555,1921.2,1921.1,9.69366901]
[1688183883048,5.1297,1921.3,1921.1,9.69366901]
[1688183883250,0.19683916,1921.2,1921.1,5.04766901]
[1688183883445,0.19683916,1921.2,1921.1,9.73766901]
[1688183883757,0.19683916,1921.2,1921.1,10.50024832]
[1688183885756,7.02470725,1921.2,1921.1,10.50024832]
[1688183886451,6.77798841,1921.2,1921.1,10.50024832]
[1688183886652,6.72878416,1921.2,1921.1,10.50024832]
[1688183888851,7.01550051,1921.2,1921.1,6.52986901]
[1688183889156,10.98936731,1921.2,1921.1,5.00244]
[1688183889359,0.07811873,1921.2,1921.1,5.19753519]
[1688183909892,0.16973989,1921.2,1921.1,5.19753519]
[1688183910392,0.07811873,1921.2,1921.1,5.19753519]
[1688183914793,0.07811873,1921.2,1921.1,6.79134142]
[1688183920995,0.16973989,1921.2,1921.1,5.00244]
[1688183923599,0.07811873,1921.2,1921.1,5.28915635]
[1688183927903,0.16973989,1921.2,1921.1,5.28915635]
[1688183930397,0.07811873,1921.2,1921.1,5.28915635]
[1688183934506,0.16973989,1921.2,1921.1,5.28915635]
[1688183934705,0.16973989,1921.2,1921.1,5.00244]
[1688183935206,0.16973989,1921.2,1921.1,5.28915635]
[1688183936806,0.07811873,1921.2,1921.1,5.28915635]
[1688183939299,0.16973989,1921.2,1921.1,5.28915635]
[1688183939902,5.04588666,1921.3,1921.1,5.28915635]
[1688183940115,5.04588666,1921.3,1921.2,5.25748412]
[1688183940318,5.04588666,1921.3,1921.2,5.56990412]
[1688183941108,0.00780782,1921.3,1921.2,5.56990412]
[1688183951824,0.00780782,1921.3,1921.2,5.98127534]
[1688183952520,0.00780782,1921.3,1921.2,7.52751083]
[1688183953021,0.09942898,1921.3,1921.2,6.96002671]
[1688183953220,0.09942898,1921.3,1921.2,5.41379122]
[1688183953525,0.09942898,1921.3,1921.2,5.70050757]
[1688183956226,0.00780782,1921.3,1921.2,5.70050757]
[1688183959636,0.09942898,1921.3,1921.2,5.70050757]
[1688183961040,0.00780782,1921.3,1921.2,5.70050757]
[1688183962137,0.09942898,1921.3,1921.2,5.70050757]
[1688183963543,0.00780782,1921.3,1921.2,5.70050757]
[1688183964142,0.09942898,1921.3,1921.2,5.70050757]
[1688183965342,0.00780782,1921.3,1921.2,5.70050757]
[1688183967049,0.09942898,1921.3,1921.2,5.70050757]
[1688183968446,0.09942898,1921.3,1921.2,5.41379122]
[1688183970247,0.09942898,1921.3,1921.2,5.70050757]
[1688183970847,0.00780782,1921.3,1921.2,5.70050757]
[1688183972752,0.09942898,1921.3,1921.2,5.70050757]
[1688183974655,0.09942898,1921.3,1921.2,5.41379122]
[1688183975357,0.09942898,1921.3,1921.2,5.70050757]
[1688183976157,0.00780782,1921.3,1921.2,5.70050757]
[1688183977652,0.09942898,1921.3,1921.2,5.41379122]
[1688183979747,5.20482898,1921.3,1921.2,0.72379122]
[1688183993063,5.10182898,1921.3,1921.2,0.72379122]
[1688184001274,5.10182898,1921.3,1921.2,0.31242]
[1688184002376,0.48397373,1921.2,1921.1,0.7249183]
[1688184002569,4.00420373,1921.2,1921.1,0.31244]
[1688184004872,8.69420373,1921.2,1921.1,0.31244]
[1688184005980,8.69420373,1921.2,1921.1,0.47405502]
[1688184007583,8.69420373,1921.2,1921.0,5.367988]
[1688184007880,4.00420373,1921.2,1921.1,0.94264943]
[1688184008083,8.69420373,1921.2,1921.1,0.94264943]
[1688184008279,8.78582489,1921.2,1921.1,0.90223503]
[1688184009577,8.38177373,1921.2,1921.1,1.18895138]
[1688184009785,7.98942116,1921.2,1921.1,1.18895138]
[1688184009983,7.8978,1921.2,1921.1,0.90223503]
[1688184010191,7.8978,1921.2,1921.1,1.18895138]
[1688184010381,7.98942116,1921.2,1921.1,1.18895138]
[1688184012189,3.29942116,1921.2,1921.1,5.85095138]
[1688184012584,3.61185116,1921.2,1921.1,5.85095138]
[1688184017091,0.49178155,1921.3,1921.2,0.104]
[1688184017396,0.31234,1921.8,1921.3,0.31241]
[1688184017601,18.04079067,1921.9,1921.7,5.00233]
[1688184017782,17.66387183,1921.9,1921.7,5.28904635]
[1688184017989,0.07985993,1921.8,1921.7,5.28904635]
[1688184022099,0.07985993,1921.8,1921.7,5.26104635]
[1688184027599,0.07985993,1921.8,1921.7,5.6687508]
[1688184027803,6.89201767,1921.8,1921.7,5.7727508]
[1688184034213,0.07985993,1921.8,1921.7,5.7727508]
[1688184035312,0.07985993,1921.8,1921.7,5.6687508]
[1688184037616,0.17148109,1921.8,1921.7,5.38203445]
[1688184037806,5.48860109,1921.8,1921.7,5.38203445]
[1688184038115,5.17628109,1921.8,1921.7,5.6687508]
[1688184038614,5.48861109,1921.8,1921.7,5.38203445]
[1688184038811,5.48861109,1921.8,1921.7,5.41003445]
[1688184039011,12.03874502,1921.8,1921.7,5.41003445]
[1688184039515,5.48861109,1921.8,1921.7,5.41003445]
[1688184041214,5.63037471,1921.8,1921.7,5.41003445]
[1688184044316,5.63037471,1921.8,1921.7,5.09770445]
[1688184044512,10.32037471,1921.8,1921.7,0.40770445]
[1688184044716,16.87050864,1921.8,1921.7,0.40770445]
[1688184044918,16.87050864,1921.8,1921.6,0.00780539]
[1688184045117,3.69177373,1921.7,1921.6,0.00780539]
[1688184045321,4.00412373,1921.7,1921.6,0.00780539]
[1688184045617,4.23541396,1921.7,1921.6,0.00780539]
[1688184048223,4.23541396,1921.7,1921.6,0.42873589]
[1688184048522,4.23541396,1921.7,1921.6,0.00780539]
[1688184048720,8.92541396,1921.7,1921.6,0.00780539]
[1688184048916,8.69412373,1921.7,1921.6,0.00780539]
[1688184049217,5.0,1921.6,1921.1,4.646]
[1688184049423,7.8978,1921.2,1920.9,5.00247]
[1688184049617,3.2078,1921.0,1920.9,5.00247]
[1688184049818,4.00423373,1921.0,1920.9,4.69]
[1688184050322,10.55436766,1921.0,1920.9,4.69]
[1688184050709,10.55436766,1921.0,1920.9,5.00248]
[1688184052320,10.55436766,1921.0,1920.9,0.31248]
[1688184058432,6.55013393,1921.0,1920.9,5.28919635]
[1688184058629,12.10709393,1921.1,1920.9,5.28919635]
[1688184058928,12.10709393,1921.1,1921.0,4.95846]
[1688184059623,6.55013393,1921.1,1921.0,5.06246]
[1688184059924,6.55013393,1921.1,1921.0,10.31994412]
[1688184060138,0.31243,1921.2,1921.0,10.31994412]
[1688184060330,0.31243,1921.2,1921.1,4.97671635]
[1688184060534,0.31243,1921.2,1921.1,5.28915635]
[1688184061922,0.40405116,1921.2,1921.1,5.28915635]
[1688184062124,0.40405116,1921.2,1921.1,5.00244]
[1688184064724,0.40405116,1921.2,1921.1,0.31244]
[1688184067829,3.61185116,1921.2,1921.1,0.31244]
[1688184068033,10.16198509,1921.2,1921.1,0.31244]
[1688184068837,10.16198509,1921.2,1921.0,5.00246]
[1688184069036,0.48397373,1921.1,1921.0,4.69]
[1688184069335,0.79641373,1921.1,1921.0,5.00246]
[1688184069939,5.77411373,1921.1,1921.0,5.00246]
[1688184070237,12.32424766,1921.1,1921.0,5.00246]
[1688184070837,5.77411373,1921.1,1921.0,5.00246]
[1688184071939,5.77411373,1921.1,1921.0,0.31246]
[1688184071940,10.46411373,1921.1,1921.0,0.31246]
[1688184075153,17.01424766,1921.1,1921.0,0.31246]
[1688184076840,17.01424766,1921.1,1920.9,6.30330436]
[1688184077038,3.29942116,1921.0,1920.9,6.30330436]
[1688184077244,3.61188116,1921.0,1920.9,6.30330436]
[1688184080147,10.16201509,1921.0,1920.9,6.30330436]
[1688184081047,10.16201509,1921.0,1920.9,1.36200436]
[1688184081547,21.66170314,1921.0,1920.8,0.00780864]
[1688184081748,0.79645373,1920.9,1920.8,0.00780864]
[1688184082444,5.94235373,1920.9,1920.8,0.00780864]
[1688184082654,12.49248766,1920.9,1920.8,0.00780864]
[1688184083348,19.30217571,1920.9,1920.8,0.00780864]
[1688184084553,12.49248766,1920.9,1920.8,0.00780864]
[1688184084756,5.94235373,1920.9,1920.8,0.00780864]
[1688184092068,10.63235373,1920.9,1920.8,0.00780864]
[1688184094268,10.63235373,1920.9,1920.8,0.15079126]
[1688184094463,10.63235373,1920.9,1920.8,0.00780864]
[1688184095267,10.63235373,1920.9,1920.8,0.19431526]
[1688184100780,10.63235373,1920.9,1920.8,0.50680526]
[1688184101775,10.63235373,1920.9,1920.8,0.19431526]
[1688184101977,10.63235373,1920.9,1920.8,0.50680526]
[1688184103779,10.63235373,1920.9,1920.8,0.19431526]
[1688184104075,10.63235373,1920.9,1920.8,0.50680526]
[1688184104670,10.63235373,1920.9,1920.8,0.19431526]
[1688184123690,0.09162116,1920.8,1920.2,0.88547]
[1688184123991,0.31253,1920.7,1920.4,4.9179]
[1688184124190,8.21036,1920.5,1920.4,4.9179]
[1688184124490,8.21036,1920.5,1920.2,0.104]
[1688184124691,8.21039,1920.3,1920.2,0.42441108]
[1688184125190,8.21039,1920.3,1920.2,0.11181108]
[1688184125388,8.21039,1920.3,1920.2,0.42436108]
[1688184127389,8.21039,1920.3,1920.2,0.00781108]
[1688184127785,13.30099,1920.3,1920.2,0.00781108]
[1688184127984,19.85112393,1920.3,1920.2,0.00781108]
[1688184131197,19.85112393,1920.3,1920.2,0.20469939]
[1688184134297,26.65123726,1920.3,1920.2,0.20469939]
[1688184136195,18.35283726,1920.3,1920.2,0.59541574]
[1688184136395,6.86272393,1920.3,1920.2,5.59795574]
[1688184136595,0.31259,1920.3,1920.2,5.59795574]
[1688184136792,13.35024726,1920.4,1920.2,5.59795574]
[1688184137091,4.69781108,1920.5,1920.2,5.59795574]
[1688184137092,0.00781108,1920.5,1920.4,0.31251]
[1688184137296,0.00781108,1920.5,1920.4,5.26122635]
[1688184137490,0.31247,1920.7,1920.5,0.56748412]
[1688184137801,0.31247,1920.7,1920.6,4.95848]
[1688184137994,0.31247,1920.7,1920.6,5.24519635]
[1688184138300,0.31247,1920.7,1920.6,5.34919635]
[1688184141688,0.31243,1920.7,1920.6,5.34919635]
[1688184142099,0.94521986,1920.8,1920.6,5.34919635]
[1688184142288,0.32023986,1920.8,1920.6,5.34919635]
[1688184143092,0.32023986,1920.8,1920.6,5.24519635]
[1688184145503,0.32023986,1920.8,1920.6,5.81268047]
[1688184148103,0.32023986,1920.8,1920.7,0.19655906]
[1688184148308,0.32023986,1920.8,1920.7,0.50899906]
[1688184148503,0.41186102,1920.8,1920.7,0.50899906]
[1688184149205,0.32023986,1920.8,1920.7,0.50899906]
[1688184149703,0.32023986,1920.8,1920.7,0.31244]
[1688184151814,0.41186102,1920.8,1920.7,0.31244]
[1688184153113,0.41186102,1920.8,1920.7,0.40434997]
[1688184153505,0.41186102,1920.8,1920.7,0.37527072]
[1688184157016,2.03618138,1920.8,1920.7,0.37527072]
[1688184161619,2.03623138,1920.8,1920.7,0.37527072]
[1688184165325,2.03623138,1920.8,1920.7,0.66198707]
[1688184166529,1.94461022,1920.8,1920.7,0.66198707]
[1688184167727,2.03623138,1920.8,1920.7,0.66198707]
[1688184169133,2.03623138,1920.8,1920.7,0.37527072]
[1688184171235,2.03623138,1920.8,1920.7,0.66198707]
[1688184171530,1.94461022,1920.8,1920.7,0.66198707]
[1688184172033,1.94461022,1920.8,1920.7,5.35198707]
[1688184172230,0.32028986,1920.8,1920.7,5.35198707]
[1688184172729,0.41191102,1920.8,1920.7,5.35198707]
[1688184173329,0.32028986,1920.8,1920.7,5.35198707]
[1688184174537,0.41191102,1920.8,1920.7,5.35198707]